fUSD/lending_fUSD_20250204
["ID","MTS","AMOUNT","RATE_DAILY","PERIOD"]
[351614101,1738665046408,-508.04,8.9e-05,2]
[351614103,1738665046418,-1780.47,8.9e-05,2]
[351614105,1738665046427,-2170.25,8.9e-05,2]
[351614107,1738665046436,-500.0,8.9e-05,2]
[351614109,1738665046446,-659.9,8.9e-05,2]
[351614111,1738665046455,-1930.46,8.9e-05,2]
[351614113,1738665046465,-1665.98,8.9e-05,2]
[351614115,1738665046474,-500.0,8.9e-05,2]
[351614117,1738665046483,-2367.91,8.9e-05,2]
[351614119,1738665046493,-547.69,8.9e-05,2]
[351614121,1738665046502,-2294.24,8.9e-05,2]
[351614122,1738665046511,-1575.87,8.9e-05,2]
[351614125,1738665046521,-500.0,8.9e-05,2]
[351614126,1738665046530,-1815.19,8.9e-05,2]
[351614128,1738665046539,-1629.89,8.9e-05,2]
[351614129,1738665046548,-500.0,8.9e-05,2]
[351614130,1738665046557,-1478.12,8.9e-05,2]
[351614131,1738665046567,-922.6,8.9e-05,2]
[351614132,1738665046576,-2534.85,8.9e-05,2]
[351614133,1738665046585,-661.07,8.9e-05,2]
[351614134,1738665046595,-1788.77,8.9e-05,2]
[351614135,1738665046604,-1015.81,8.9e-05,2]
[351614136,1738665046613,-1085.19,8.9e-05,2]
[351614137,1738665046626,-1730.8,8.9e-05,2]
[351614139,1738665046636,-500.0,8.9e-05,2]
[351614157,1738665046647,-880.02,8.9e-05,2]
[351614163,1738665046884,-1826.0,8.9e-05,2]
[351614165,1738665046894,-783.0,8.9e-05,2]
[351614167,1738665046904,-907.0,8.9e-05,2]
[351614169,1738665046914,-1264.0,8.9e-05,2]
[351614171,1738665046924,-2953.0,8.9e-05,2]
[351614173,1738665046933,-1324.0,8.9e-05,2]
[351614176,1738665046943,-539.0,8.9e-05,2]
[351614177,1738665046953,-1108.0,8.9e-05,2]
[351614179,1738665046963,-1272.0,8.9e-05,2]
[351614182,1738665046973,-639.0,8.9e-05,2]
[351614184,1738665046983,-150.0,8.9e-05,2]
[351614186,1738665046992,-3911.0,8.9e-05,2]
[351614188,1738665047002,-2023.0,8.9e-05,2]
[351614190,1738665047011,-150.0,8.9e-05,2]
[351614192,1738665047020,-1007.0,8.9e-05,2]
[351614194,1738665047029,-500.0,8.902e-05,2]
[351614196,1738665047039,-500.0,8.902e-05,2]
[351614198,1738665047047,-637.08,8.902e-05,2]
[351614200,1738665047057,-500.0,8.902e-05,2]
[351614202,1738665047065,-500.0,8.902e-05,2]
[351614204,1738665047075,-500.0,8.902e-05,2]
[351614206,1738665047084,-500.0,8.902e-05,2]
[351614208,1738665047093,-500.0,8.902e-05,2]
[351614210,1738665047103,-500.0,8.902e-05,2]
[351614212,1738665047112,-500.0,8.902e-05,2]
[351614214,1738665047124,-500.0,8.902e-05,2]
[351614216,1738665047133,-500.0,8.902e-05,2]
[351614218,1738665047143,-500.0,8.902e-05,2]
[351614220,1738665047152,-500.0,8.902e-05,2]
[351614222,1738665047162,-511.93,8.902e-05,2]
[351614224,1738665047172,-500.0,8.902e-05,2]
[351614226,1738665047181,-500.0,8.902e-05,2]
[351614228,1738665047191,-609.82,8.902e-05,2]
[351614229,1738665047199,-500.0,8.902e-05,2]
[351614232,1738665047208,-500.0,8.902e-05,2]
[351614233,1738665047217,-500.0,8.902e-05,2]
[351614236,1738665047227,-840.11,8.902e-05,2]
[351614238,1738665047236,-500.0,8.902e-05,2]
[351614240,1738665047246,-500.0,8.902e-05,2]
[351614242,1738665047256,-551.08,8.902e-05,2]
[351614243,1738665047266,-500.0,8.902e-05,2]
[351614246,1738665047275,-800.96,8.902e-05,2]
[351614247,1738665047285,-344.56,8.902e-05,2]
[351614250,1738665047295,-500.0,8.902e-05,2]
[351614252,1738665047304,-500.0,8.902e-05,2]
[351614253,1738665047314,-500.0,8.902e-05,2]
[351614256,1738665047323,-535.88183827,8.902e-05,2]
[351614258,1738665047333,-560.85,8.902e-05,2]
[351614259,1738665047342,-500.0,8.902e-05,2]
[351614262,1738665047351,-566.81085073,8.902e-05,2]
[351614263,1738665047361,-500.0,8.902e-05,2]
[351614266,1738665047371,-500.0,8.902e-05,2]
[351614267,1738665047381,-500.0,8.902e-05,2]
[351614269,1738665047391,-500.0,8.902e-05,2]
[351614271,1738665047401,-500.0,8.902e-05,2]
[351614273,1738665047410,-583.57,8.902e-05,2]
[351614275,1738665047420,-500.0,8.902e-05,2]
[351614277,1738665047430,-500.0,8.902e-05,2]
[351614279,1738665047439,-579.86382323,8.902e-05,2]
[351614281,1738665047448,-667.98,8.902e-05,2]
[351614283,1738665047457,-500.0,8.902e-05,2]
[351614285,1738665047467,-500.0,8.902e-05,2]
[351614287,1738665047475,-500.0,8.902e-05,2]
[351614289,1738665047485,-500.0,8.902e-05,2]
[351614291,1738665047494,-500.0,8.902e-05,2]
[351614293,1738665047503,-500.0,8.902e-05,2]
[351614295,1738665047512,-500.0,8.902e-05,2]
[351614297,1738665047521,-500.0,8.902e-05,2]
[351614299,1738665047530,-500.0,8.902e-05,2]
[351614301,1738665047539,-442.43615703,8.902e-05,2]
[351614303,1738665047549,-500.0,8.902e-05,2]
[351614305,1738665047558,-500.0,8.902e-05,2]
[351614307,1738665047568,-500.0,8.902e-05,2]
[351614309,1738665047577,-500.0,8.902e-05,2]
[351614311,1738665047587,-500.0,8.902e-05,2]
[351614313,1738665047596,-500.0,8.902e-05,2]
[351614315,1738665047606,-500.0,8.902e-05,2]
[351614317,1738665047615,-500.0,8.902e-05,2]
[351614319,1738665047625,-516.22,8.902e-05,2]
[351614321,1738665047635,-500.0,8.902e-05,2]
[351614324,1738665047646,-500.0,8.902e-05,2]
[351614325,1738665047659,-598.43,8.902e-05,2]
[351614327,1738665047669,-500.0,8.902e-05,2]
[351614330,1738665047679,-862.81,8.902e-05,2]
[351614331,1738665047688,-500.0,8.902e-05,2]
[351614333,1738665047698,-500.0,8.902e-05,2]
[351614335,1738665047708,-500.0,8.902e-05,2]
[351614338,1738665047717,-500.0,8.902e-05,2]
[351614339,1738665047727,-500.0,8.902e-05,2]
[351614341,1738665047737,-500.0,8.902e-05,2]
[351614344,1738665047746,-500.0,8.902e-05,2]
[351614345,1738665047755,-500.0,8.902e-05,2]
[351614347,1738665047764,-500.0,8.902e-05,2]
[351614349,1738665047774,-500.0,8.902e-05,2]
[351614351,1738665047783,-500.0,8.902e-05,2]
[351614353,1738665047792,-864.27,8.902e-05,2]
[351614355,1738665047802,-500.0,8.902e-05,2]
[351614357,1738665047811,-608.26,8.902e-05,2]
[351614360,1738665047822,-591.33,8.902e-05,2]
[351614362,1738665047831,-500.0,8.902e-05,2]
[351614363,1738665047840,-535.28,8.902e-05,2]
[351614365,1738665047849,-500.0,8.902e-05,2]
[351614367,1738665047859,-380.92,8.902e-05,2]
[351614369,1738665047871,-500.0,8.902e-05,2]
[351614371,1738665047879,-500.0,8.902e-05,2]
[351614373,1738665047888,-500.0,8.902e-05,2]
[351614375,1738665047898,-500.0,8.902e-05,2]
[351614377,1738665047907,-654.63,8.902e-05,2]
[351614379,1738665047917,-500.0,8.902e-05,2]
[351614381,1738665047927,-544.08,8.902e-05,2]
[351614383,1738665047936,-500.0,8.902e-05,2]
[351614386,1738665047945,-500.0,8.902e-05,2]
[351614387,1738665047954,-619.14,8.902e-05,2]
[351614390,1738665047965,-532.45,8.902e-05,2]
[351614391,1738665047976,-500.0,8.902e-05,2]
[351614393,1738665047985,-500.0,8.902e-05,2]
[351614395,1738665047994,-500.0,8.902e-05,2]
[351614397,1738665048003,-500.0,8.902e-05,2]
[351614399,1738665048013,-500.0,8.902e-05,2]
[351614402,1738665048022,-500.0,8.902e-05,2]
[351614404,1738665048032,-500.0,8.902e-05,2]
[351614405,1738665048042,-500.0,8.902e-05,2]
[351614407,1738665048052,-503.52,8.902e-05,2]
[351614409,1738665048062,-500.0,8.902e-05,2]
[351614411,1738665048071,-500.0,8.902e-05,2]
[351614414,1738665048081,-500.0,8.902e-05,2]
[351614416,1738665048090,-500.0,8.902e-05,2]
[351614418,1738665048100,-500.0,8.902e-05,2]
[351614419,1738665048110,-500.0,8.902e-05,2]
[351614421,1738665048120,-500.0,8.902e-05,2]
[351614423,1738665048131,-500.0,8.902e-05,2]
[351614425,1738665048140,-875.23,8.902e-05,2]
[351614427,1738665048150,-1171.89,8.902e-05,2]
[351614429,1738665048159,-500.0,8.902e-05,2]
[351614431,1738665048168,-500.0,8.902e-05,2]
[351614433,1738665048177,-636.04,8.902e-05,2]
[351614435,1738665048186,-500.0,8.902e-05,2]
[351614437,1738665048195,-1376.29,8.902e-05,2]
[351614439,1738665048205,-500.0,8.902e-05,2]
[351614442,1738665048215,-595.74,8.902e-05,2]
[351614444,1738665048225,-1235.14,8.902e-05,2]
[351614445,1738665048234,-500.0,8.902e-05,2]
[351614448,1738665048244,-1394.91,8.902e-05,2]
[351614450,1738665048254,-500.0,8.902e-05,2]
[351614451,1738665048264,-1134.71,8.902e-05,2]
[351614454,1738665048274,-500.0,8.902e-05,2]
[351614455,1738665048284,-500.0,8.902e-05,2]
[351614457,1738665048293,-500.0,8.902e-05,2]
[351614459,1738665048303,-500.0,8.902e-05,2]
[351614461,1738665048313,-1628.73,8.902e-05,2]
[351614463,1738665048323,-500.0,8.902e-05,2]
[351614466,1738665048334,-500.0,8.902e-05,2]
[351614468,1738665048344,-500.0,8.902e-05,2]
[351614470,1738665048353,-266.04890237,8.902e-05,2]
[351614472,1738665048362,-1535.52,8.902e-05,2]
[351614474,1738665048374,-500.0,8.902e-05,2]
[351614476,1738665048383,-1698.38,8.902e-05,2]
[351614477,1738665048393,-1441.35,8.902e-05,2]
[351614479,1738665048404,-993.68,8.902e-05,2]
[351614481,1738665048413,-500.0,8.902e-05,2]
[351614483,1738665048423,-500.0,8.902e-05,2]
[351614485,1738665048433,-500.0,8.902e-05,2]
[351614487,1738665048443,-500.0,8.902e-05,2]
[351614489,1738665048452,-500.0,8.902e-05,2]
[351614491,1738665048461,-500.0,8.902e-05,2]
[351614493,1738665048471,-500.0,8.902e-05,2]
[351614495,1738665048480,-744.39,8.902e-05,2]
[351614497,1738665048490,-500.0,8.902e-05,2]
[351614499,1738665048499,-500.0,8.902e-05,2]
[351614501,1738665048508,-500.0,8.902e-05,2]
[351614503,1738665048517,-500.0,8.902e-05,2]
[351614505,1738665048527,-629.83,8.902e-05,2]
[351614507,1738665048536,-500.0,8.902e-05,2]
[351614509,1738665048545,-500.0,8.902e-05,2]
[351614511,1738665048555,-500.0,8.903e-05,2]
[351614513,1738665048564,-500.0,8.903e-05,2]
[351614515,1738665048573,-500.0,8.903e-05,2]
[351614517,1738665048583,-500.0,8.903e-05,2]
[351614519,1738665048592,-500.0,8.903e-05,2]
[351614521,1738665048602,-500.0,8.903e-05,2]
[351614523,1738665048611,-500.0,8.903e-05,2]
[351614525,1738665048622,-500.0,8.903e-05,2]
[351614527,1738665048632,-562.93,8.903e-05,2]
[351614529,1738665048642,-500.0,8.903e-05,2]
[351614531,1738665048654,-500.0,8.903e-05,2]
[351614533,1738665048665,-500.0,8.903e-05,2]
[351614535,1738665048674,-537.57,8.903e-05,2]
[351614537,1738665048684,-500.0,8.903e-05,2]
[351614539,1738665048693,-500.0,8.903e-05,2]
[351614541,1738665048702,-500.0,8.903e-05,2]
[351614543,1738665048712,-500.0,8.903e-05,2]
[351614545,1738665048721,-500.0,8.903e-05,2]
[351614547,1738665048731,-500.0,8.903e-05,2]
[351614549,1738665048740,-500.0,8.903e-05,2]
[351614551,1738665048750,-597.2,8.903e-05,2]
[351614553,1738665048759,-500.0,8.903e-05,2]
[351614555,1738665048768,-500.0,8.903e-05,2]
[351614557,1738665048778,-523.94,8.903e-05,2]
[351614559,1738665048788,-333.26,8.91e-05,2]
[351614561,1738665048797,-438.55,8.91e-05,2]
[351614563,1738665048806,-438.55,8.91e-05,2]
[351614565,1738665048816,-438.28,8.91e-05,2]
[351614567,1738665048826,-810.16,8.926e-05,2]
[351614569,1738665048835,-500.0,8.926e-05,2]
[351614571,1738665048845,-747.04,8.926e-05,2]
[351614573,1738665048854,-530.01,8.926e-05,2]
[351614575,1738665048864,-664.95,8.926e-05,2]
[351614577,1738665048875,-500.0,8.926e-05,2]
[351614579,1738665048886,-540.67,8.926e-05,2]
[351614581,1738665048895,-640.62,8.926e-05,2]
[351614583,1738665048905,-500.0,8.926e-05,2]
[351614585,1738665048914,-820.99,8.926e-05,2]
[351614587,1738665048924,-1170.31,8.926e-05,2]
[351614589,1738665048934,-500.0,8.926e-05,2]
[351614591,1738665048943,-784.84,8.926e-05,2]
[351614593,1738665048952,-500.0,8.926e-05,2]
[351614595,1738665048961,-754.27,8.926e-05,2]
[351614597,1738665048971,-500.0,8.926e-05,2]
[351614599,1738665048981,-1025.25,8.926e-05,2]
[351614600,1738665048991,-688.46,8.926e-05,2]
[351614603,1738665049001,-500.0,8.926e-05,2]
[351614605,1738665049010,-831.91,8.926e-05,2]
[351614606,1738665049020,-500.0,8.926e-05,2]
[351614609,1738665049030,-920.97,8.926e-05,2]
[351614610,1738665049040,-581.87,8.926e-05,2]
[351614613,1738665049051,-296.3871793,8.926e-05,2]
[351614615,1738665049061,-631.15,8.926e-05,2]
[351614616,1738665049071,-500.0,8.926e-05,2]
[351614618,1738665049081,-558.01,8.926e-05,2]
[351614620,1738665049092,-667.56,8.926e-05,2]
[351614623,1738665049102,-1217.87,8.926e-05,2]
[351614625,1738665049112,-697.11,8.926e-05,2]
[351614626,1738665049124,-500.0,8.926e-05,2]
[351614628,1738665049134,-500.0,8.926e-05,2]
[351614630,1738665049144,-746.04,8.926e-05,2]
[351614632,1738665049154,-549.29,8.926e-05,2]
[351614634,1738665049164,-500.0,8.926e-05,2]
[351614637,1738665049174,-220.0948371,8.926e-05,2]
[351614638,1738665049184,-500.0,8.926e-05,2]
[351614640,1738665049194,-500.0,8.926e-05,2]
[351614643,1738665049204,-500.0,8.926e-05,2]
[351614645,1738665049214,-672.9,8.926e-05,2]
[351614647,1738665049224,-500.0,8.926e-05,2]
[351614649,1738665049234,-707.79,8.926e-05,2]
[351614650,1738665049244,-998.39,8.926e-05,2]
[351614652,1738665049254,-914.85,8.926e-05,2]
[351614655,1738665049264,-500.0,8.926e-05,2]
[351614656,1738665049274,-500.0,8.926e-05,2]
[351614659,1738665049284,-500.0,8.926e-05,2]
[351614661,1738665049294,-578.19,8.926e-05,2]
[351614663,1738665049304,-500.0,8.926e-05,2]
[351614664,1738665049313,-630.84,8.926e-05,2]
[351614666,1738665049323,-564.36,8.926e-05,2]
[351614668,1738665049332,-1064.45,8.926e-05,2]
[351614670,1738665049343,-808.06,8.926e-05,2]
[351614672,1738665049352,-500.0,8.926e-05,2]
[351614674,1738665049362,-1070.02,8.926e-05,2]
[351614676,1738665049375,-1624.5,8.926e-05,2]
[351614678,1738665049384,-500.0,8.926e-05,2]
[351614680,1738665049395,-693.27,8.926e-05,2]
[351614682,1738665049404,-534.9,8.926e-05,2]
[351614684,1738665049414,-734.84,8.926e-05,2]
[351614686,1738665049423,-500.0,8.926e-05,2]
[351614688,1738665049432,-537.1,8.926e-05,2]
[351614690,1738665049441,-667.36,8.926e-05,2]
[351614692,1738665049451,-1156.48,8.926e-05,2]
[351614694,1738665049460,-830.81,8.926e-05,2]
[351614696,1738665049470,-614.73,8.926e-05,2]
[351614698,1738665049479,-500.0,8.927e-05,2]
[351614700,1738665049490,-500.0,8.927e-05,2]
[351614702,1738665049500,-743.48,8.927e-05,2]
[351614704,1738665049509,-500.0,8.927e-05,2]
[351614706,1738665049519,-500.0,8.927e-05,2]
[351614708,1738665049528,-500.0,8.927e-05,2]
[351614709,1738665049538,-500.0,8.927e-05,2]
[351614710,1738665049547,-500.0,8.927e-05,2]
[351614711,1738665049557,-500.0,8.927e-05,2]
[351614712,1738665049566,-500.0,8.927e-05,2]
[351614713,1738665049576,-500.0,8.927e-05,2]
[351614714,1738665049585,-685.63,8.927e-05,2]
[351614715,1738665049595,-500.0,8.927e-05,2]
[351614716,1738665049604,-578.01,8.927e-05,2]
[351614717,1738665049614,-686.37,8.927e-05,2]
[351614718,1738665049626,-500.0,8.927e-05,2]
[351614719,1738665049635,-707.51,8.927e-05,2]
[351614721,1738665049647,-1077.5,8.927e-05,2]
[351614723,1738665049665,-500.0,8.927e-05,2]
[351614725,1738665049678,-1111.21,8.927e-05,2]
[351614727,1738665049688,-756.01,8.927e-05,2]
[351614729,1738665049697,-1039.64,8.927e-05,2]
[351614731,1738665049707,-500.0,8.927e-05,2]
[351614733,1738665049716,-719.21,8.927e-05,2]
[351614735,1738665049726,-667.09,8.927e-05,2]
[351614737,1738665049736,-778.76,8.927e-05,2]
[351614739,1738665049745,-500.0,8.927e-05,2]
[351614741,1738665049756,-500.0,8.927e-05,2]
[351614743,1738665049765,-500.0,8.927e-05,2]
[351614745,1738665049775,-676.96,8.927e-05,2]
[351614747,1738665049784,-974.55,8.927e-05,2]
[351614749,1738665049794,-500.0,8.927e-05,2]
[351614751,1738665049803,-500.0,8.927e-05,2]
[351614753,1738665049813,-693.12,8.927e-05,2]
[351614755,1738665049823,-500.0,8.927e-05,2]
[351614757,1738665049832,-202.33224861,8.931e-05,2]
[351614759,1738665049841,-5596.6070705,8.936e-05,2]
[351614788,1738665050988,-500.0,8.899e-05,2]
[351614789,1738665050997,-500.0,8.899e-05,2]
[351614790,1738665051006,-6260.76725063,8.936e-05,2]
[351614791,1738665051026,-502.16456608,8.899e-05,2]
[351614792,1738665051035,-2222.90330282,8.936e-05,2]
[351614793,1738665051047,-4057.39784549,8.936e-05,2]
[351614794,1738665051058,-514.73694808,8.936e-05,2]
[351614795,1738665051102,-375.12490211,8.936e-05,2]
[351614796,1738665051197,-676.22000016,8.936e-05,2]
[351614799,1738665223685,-38187.42966096,0.00012,30]
[351614801,1738665589045,-10000.0,0.00012,18]
[351614802,1738665590365,-10000.0,0.00012,18]
[351614803,1738665595582,-10000.0,0.00012,18]
[351614804,1738665603998,3200.0,0.000181,90]
[351614805,1738665629607,2535.852168,0.00019,120]
[351614806,1738665750309,501.21949653,0.00018,60]
[351614807,1738665833458,599.61563935,0.00019,120]
[351614824,1738666231508,-1565.51600315,8.192e-05,2]
[351614825,1738666231563,-454.92529219,8.192e-05,2]
[351614826,1738666231617,-2458.81228831,8.192e-05,2]
[351614827,1738666231629,-1959.74641635,8.192e-05,2]
[351614828,1738666231639,-150.0,8.192e-05,2]
[351614829,1738666231657,-150.0,8.205e-05,2]
[351614830,1738666231667,-168.25,8.219e-05,2]
[351614831,1738666231676,-250.0,8.219e-05,2]
[351614832,1738666231686,-1000.0,8.219e-05,2]
[351614833,1738666231695,-1746.7,8.219e-05,2]
[351614834,1738666231705,-988.76,8.219e-05,2]
[351614835,1738666231714,-3229.2570296,8.219e-05,2]
[351614836,1738666231724,-173.17,8.239e-05,2]
[351614837,1738666231733,-250.0,8.49e-05,2]
[351614838,1738666231743,-375.90162455,8.7e-05,2]
[351614839,1738666231762,-1514.09837545,8.7e-05,2]
[351614840,1738666231772,-3682.32703068,8.747e-05,2]
[351614841,1738666231884,-166.35778555,8.747e-05,2]
[351614842,1738666231897,-191.32234945,8.751e-05,2]
[351614941,1738666237420,-3657.36246678,8.751e-05,2]
[351614942,1738666237431,-402.2399757,8.757e-05,2]
[351614943,1738666237440,-3848.68481623,8.76e-05,2]
[351614944,1738666237450,-500.0,8.767e-05,2]
[351614945,1738666237459,-3848.68481623,8.791e-05,2]
[351614946,1738666237469,-197.3483,8.799e-05,2]
[351614947,1738666237479,-760.3071,8.799e-05,2]
[351614948,1738666237488,-400.0,8.8e-05,3]
[351614949,1738666237498,-2501.4958245,8.8e-05,2]
[351614950,1738666237508,-150.0,8.897e-05,2]
[351614951,1738666237517,-762.35,8.898e-05,2]
[351614952,1738666237527,-778.66,8.898e-05,2]
[351614953,1738666237536,-501.61,8.898e-05,2]
[351614954,1738666237545,-500.0,8.898e-05,2]
[351614955,1738666237554,-500.0,8.898e-05,2]
[351614956,1738666237563,-500.0,8.898e-05,2]
[351614957,1738666237573,-783.26,8.898e-05,2]
[351614958,1738666237582,-500.0,8.898e-05,2]
[351614959,1738666237592,-777.35,8.898e-05,2]
[351614960,1738666237601,-500.0,8.898e-05,2]
[351614961,1738666237611,-776.52,8.898e-05,2]
[351614962,1738666237620,-782.02,8.898e-05,2]
[351614963,1738666237630,-500.0,8.898e-05,2]
[351614964,1738666237639,-292.17799131,8.898e-05,2]
[351614965,1738666237652,-247.04200869,8.898e-05,2]
[351614966,1738666237662,-532.69,8.898e-05,2]
[351614967,1738666237673,-500.0,8.898e-05,2]
[351614968,1738666237682,-710.15,8.898e-05,2]
[351614969,1738666237692,-607.89,8.898e-05,2]
[351614970,1738666237701,-500.0,8.898e-05,2]
[351614971,1738666237711,-595.82,8.898e-05,2]
[351614972,1738666237721,-500.0,8.898e-05,2]
[351614973,1738666237731,-500.0,8.898e-05,2]
[351614974,1738666237740,-518.82,8.898e-05,2]
[351614975,1738666237749,-500.0,8.898e-05,2]
[351614976,1738666237758,-500.0,8.898e-05,2]
[351614977,1738666237768,-744.95,8.898e-05,2]
[351614978,1738666237777,-500.0,8.898e-05,2]
[351614979,1738666237787,-500.0,8.898e-05,2]
[351614980,1738666237796,-856.37136,8.898e-05,2]
[351614981,1738666237805,-500.0,8.898e-05,2]
[351614982,1738666237814,-500.0,8.898e-05,2]
[351614983,1738666237823,-156.348529,8.898e-05,2]
[351614984,1738666237832,-500.0,8.898e-05,2]
[351614985,1738666237841,-691.63,8.898e-05,2]
[351614986,1738666237851,-500.0,8.898e-05,2]
[351614987,1738666237860,-500.0,8.898e-05,2]
[351614988,1738666237869,-500.0,8.898e-05,2]
[351614989,1738666237879,-559.9,8.898e-05,2]
[351614990,1738666237888,-875.590645,8.898e-05,2]
[351614991,1738666237898,-500.0,8.898e-05,2]
[351614992,1738666237907,-500.0,8.898e-05,2]
[351614993,1738666237917,-516.13,8.898e-05,2]
[351614994,1738666237928,-198.03040739,8.898e-05,2]
[351614995,1738666237937,-26.81580949,8.898e-05,2]
[351614996,1738666237951,-473.18419051,8.898e-05,2]
[351614997,1738666237961,-254.77547803,8.898e-05,2]
[351614998,1738666238627,-408.78452197,8.898e-05,2]
[351614999,1738666238636,-541.64,8.898e-05,2]
[351615000,1738666238645,-500.0,8.898e-05,2]
[351615001,1738666238656,-279.60114468,8.898e-05,2]
[351615002,1738666238713,-220.57483728,8.898e-05,2]
[351615003,1738666238723,-500.0,8.898e-05,2]
[351615004,1738666238733,-859.42,8.898e-05,2]
[351615005,1738666238742,-549.17,8.898e-05,2]
[351615006,1738666238751,-500.0,8.898e-05,2]
[351615007,1738666238760,-753.75,8.898e-05,2]
[351615008,1738666238770,-500.0,8.898e-05,2]
[351615009,1738666238779,-500.0,8.898e-05,2]
[351615010,1738666238788,-500.0,8.898e-05,2]
[351615011,1738666238797,-858.01,8.898e-05,2]
[351615012,1738666238806,-521.23889702,8.898e-05,2]
[351615013,1738666238824,-404.39110298,8.898e-05,2]
[351615014,1738666238833,-95.60889702,8.898e-05,2]
[351615019,1738666239422,-404.39110298,8.898e-05,2]
[351615020,1738666239432,-883.72,8.898e-05,2]
[351615021,1738666239444,-500.0,8.898e-05,2]
[351615022,1738666239453,-500.0,8.898e-05,2]
[351615023,1738666239463,-500.0,8.898e-05,2]
[351615024,1738666239472,-500.0,8.898e-05,2]
[351615025,1738666239482,-500.0,8.898e-05,2]
[351615026,1738666239491,-500.0,8.898e-05,2]
[351615027,1738666239502,-643.38106659,8.898e-05,2]
[351615028,1738666239512,-500.0,8.898e-05,2]
[351615029,1738666239521,-500.0,8.898e-05,2]
[351615030,1738666239531,-500.0,8.898e-05,2]
[351615031,1738666239540,-500.0,8.898e-05,2]
[351615032,1738666239549,-500.0,8.898e-05,2]
[351615033,1738666239558,-582.15,8.898e-05,2]
[351615034,1738666239567,-500.0,8.898e-05,2]
[351615035,1738666239577,-500.0,8.898e-05,2]
[351615036,1738666239586,-500.0,8.898e-05,2]
[351615037,1738666239595,-500.0,8.898e-05,2]
[351615038,1738666239605,-924.81,8.898e-05,2]
[351615039,1738666239614,-500.0,8.898e-05,2]
[351615040,1738666239623,-500.0,8.898e-05,2]
[351615041,1738666239632,-500.0,8.898e-05,2]
[351615042,1738666239642,-502.07776132,8.898e-05,2]
[351615043,1738666239651,-500.0,8.898e-05,2]
[351615044,1738666239660,-500.0,8.898e-05,2]
[351615045,1738666239670,-501.13568394,8.898e-05,2]
[351615046,1738666239679,-788.86,8.898e-05,2]
[351615047,1738666239688,-500.0,8.898e-05,2]
[351615048,1738666239697,-500.80698544,8.898e-05,2]
[351615049,1738666239706,-551.71,8.898e-05,2]
[351615050,1738666239716,-500.0,8.898e-05,2]
[351615051,1738666239725,-501.64779158,8.898e-05,2]
[351615052,1738666239735,-500.0,8.898e-05,2]
[351615053,1738666239744,-686.39,8.898e-05,2]
[351615054,1738666239754,-500.0,8.898e-05,2]
[351615055,1738666239763,-500.0,8.898e-05,2]
[351615056,1738666239774,-500.0,8.898e-05,2]
[351615057,1738666239783,-500.0,8.898e-05,2]
[351615058,1738666239793,-500.0,8.898e-05,2]
[351615059,1738666239802,-500.0,8.898e-05,2]
[351615061,1738666239812,-500.63533267,8.898e-05,2]
[351615063,1738666239821,-500.0,8.898e-05,2]
[351615065,1738666239830,-500.0,8.898e-05,2]
[351615067,1738666239839,-500.0,8.898e-05,2]
[351615069,1738666239849,-500.0,8.898e-05,2]
[351615071,1738666239858,-500.0,8.898e-05,2]
[351615073,1738666239867,-500.0,8.898e-05,2]
[351615075,1738666239876,-500.0,8.898e-05,2]
[351615076,1738666239885,-500.0,8.898e-05,2]
[351615078,1738666239895,-500.0,8.898e-05,2]
[351615080,1738666239906,-500.0,8.898e-05,2]
[351615082,1738666239915,-500.0,8.898e-05,2]
[351615084,1738666239925,-500.0,8.898e-05,2]
[351615086,1738666239934,-500.0,8.898e-05,2]
[351615088,1738666239942,-633.47,8.898e-05,2]
[351615090,1738666239952,-322.84158487,8.898e-05,2]
[351615092,1738666239960,-500.0,8.898e-05,2]
[351615094,1738666239970,-500.0,8.898e-05,2]